fUSD/lending_fUSD_20240803
["ID","MTS","AMOUNT","RATE_DAILY","PERIOD"]
[333964351,1722649891496,-500.0,0.00017808,2]
[333964352,1722649891506,-1162.27,0.00017808,2]
[333964353,1722649891515,-516.27,0.00017808,2]
[333964354,1722649891525,-309.35618021,0.00017808,2]
[333964355,1722649891534,-500.0,0.00017808,2]
[333964356,1722649891544,-1732.62,0.00017808,2]
[333964357,1722649891554,-788.88,0.00017808,2]
[333964358,1722649891563,-826.7,0.00017808,2]
[333964359,1722649891573,-500.0,0.00017808,2]
[333964360,1722649891583,-578.93,0.00017808,2]
[333964361,1722649891593,-784.78,0.00017808,2]
[333964362,1722649891603,-1928.06,0.00017808,2]
[333964363,1722649891613,-988.43,0.00017808,2]
[333964364,1722649891623,-827.17,0.00017808,2]
[333964365,1722649891633,-500.0,0.00017808,2]
[333964366,1722649891644,-500.0,0.00017808,2]
[333964367,1722649891654,-787.45,0.00017808,2]
[333964368,1722649891664,-500.0,0.00017808,2]
[333964369,1722649891675,-684.32,0.00017808,2]
[333964370,1722649891684,-500.0,0.00017808,2]
[333964371,1722649891694,-1502.0,0.00017808,2]
[333964372,1722649891705,-500.0,0.00017808,2]
[333964373,1722649891714,-500.0,0.00017808,2]
[333964374,1722649891724,-500.0,0.00017808,2]
[333964375,1722649891733,-2470.77,0.00017808,2]
[333964376,1722649891743,-500.0,0.00017808,2]
[333964377,1722649891753,-920.08,0.00017808,2]
[333964378,1722649891763,-500.0,0.00017808,2]
[333964379,1722649891772,-659.46,0.00017808,2]
[333964380,1722649891782,-1170.39,0.00017808,2]
[333964381,1722649891792,-709.94,0.00017808,2]
[333964382,1722649891802,-2077.36,0.00017808,2]
[333964383,1722649891811,-500.0,0.00017808,2]
[333964384,1722649891821,-1322.73,0.00017808,2]
[333964385,1722649891831,-500.0,0.00017808,2]
[333964386,1722649891840,-2468.44,0.00017808,2]
[333964387,1722649891850,-2607.93,0.00017808,2]
[333964388,1722649891859,-542.45571305,0.00017808,2]
[333964389,1722649891870,-151.0,0.00017808,2]
[333964390,1722649891880,-727.41,0.00017808,2]
[333964391,1722649891891,-500.0,0.00017808,2]
[333964392,1722649891900,-500.0,0.00017808,2]
[333964393,1722649891910,-1922.65,0.00017808,2]
[333964394,1722649891920,-500.0,0.00017808,2]
[333964395,1722649891929,-704.63,0.00017808,2]
[333964396,1722649891939,-500.0,0.00017808,2]
[333964397,1722649891948,-1288.16,0.00017808,2]
[333964398,1722649891957,-520.19,0.00017808,2]
[333964399,1722649891967,-1807.71,0.00017808,2]
[333964400,1722649891976,-865.17,0.00017808,2]
[333964401,1722649891987,-1127.0,0.00017808,2]
[333964402,1722649891996,-734.51,0.00017808,2]
[333964403,1722649892007,-500.0,0.00017808,2]
[333964404,1722649892016,-962.69,0.00017808,2]
[333964405,1722649892026,-500.0,0.00017808,2]
[333964406,1722649892036,-1786.81,0.00017808,2]
[333964407,1722649892045,-13551.65,0.00017808,2]
[333964408,1722649892055,-1339.27,0.00017808,2]
[333964409,1722649892064,-551.16,0.00017808,2]
[333964410,1722649892074,-1012.61,0.00017808,2]
[333964411,1722649892083,-570.53,0.00017808,2]
[333964412,1722649892093,-1053.33,0.00017808,2]
[333964413,1722649892102,-516.99,0.00017808,2]
[333964414,1722649892112,-1329.41,0.00017808,2]
[333964415,1722649892121,-866.53,0.00017808,2]
[333964416,1722649892130,-500.0,0.00017808,2]
[333964417,1722649892141,-1208.38,0.00017808,2]
[333964418,1722649892151,-500.0,0.00017808,2]
[333964419,1722649892160,-500.0,0.00017808,2]
[333964420,1722649892169,-15945.04,0.00017808,2]
[333964421,1722649892179,-33573.91,0.00017808,2]
[333964422,1722649892188,-411.3465235,0.00017808,2]
[333964423,1722649892198,-6663.83,0.00017808,2]
[333964424,1722649892207,-784.36,0.00017808,2]
[333964425,1722649892218,-862.31,0.00017808,2]
[333964426,1722649892228,-500.0,0.00017808,2]
[333964427,1722649892237,-1790.49,0.00017808,2]
[333964428,1722649892247,-500.0,0.00017808,2]
[333964429,1722649892256,-500.0,0.00017808,2]
[333964430,1722649892266,-1285.19,0.00017808,2]
[333964431,1722649892275,-500.0,0.00017808,2]
[333964432,1722649892285,-1221.9,0.00017808,2]
[333964433,1722649892294,-500.0,0.00017808,2]
[333964434,1722649892304,-837.08,0.00017808,2]
[333964435,1722649892313,-500.0,0.00017808,2]
[333964436,1722649892323,-653.19,0.00017808,2]
[333964437,1722649892332,-632.74,0.00017808,2]
[333964438,1722649892342,-943.45,0.00017808,2]
[333964439,1722649892352,-3765.45,0.00017808,2]
[333964440,1722649892361,-500.0,0.00017808,2]
[333964441,1722649892371,-10370.7,0.00017808,2]
[333964442,1722649892382,-1249.87,0.00017808,2]
[333964443,1722649892394,-1415.15,0.00017808,2]
[333964444,1722649892404,-3115.96,0.00017808,2]
[333964445,1722649892414,-1080.17,0.00017808,2]
[333964446,1722649892424,-2202.51,0.00017808,2]
[333964447,1722649892435,-500.0,0.00017808,2]
[333964448,1722649892446,-1295.18,0.00017808,2]
[333964449,1722649892456,-1279.22,0.00017808,2]
[333964450,1722649892466,-500.0,0.00017808,2]
[333964451,1722649892476,-1265.62,0.00017808,2]
[333964452,1722649892486,-500.0,0.00017808,2]
[333964453,1722649892496,-500.0,0.00017808,2]
[333964454,1722649892505,-500.0,0.00017808,2]
[333964455,1722649892515,-903.97,0.00017808,2]
[333964456,1722649892525,-6896.96,0.00017808,2]
[333964457,1722649892535,-500.0,0.00017808,2]
[333964458,1722649892545,-500.0,0.00017808,2]
[333964459,1722649892555,-898.3,0.00017808,2]
[333964460,1722649892564,-2252.84,0.00017808,2]
[333964461,1722649892573,-5086.82,0.00017808,2]
[333964462,1722649892583,-626.92,0.00017808,2]
[333964463,1722649892593,-1468.48,0.00017808,2]
[333964464,1722649892602,-7118.7,0.00017808,2]
[333964465,1722649892611,-500.0,0.00017808,2]
[333964466,1722649892622,-726.15,0.00017808,2]
[333964467,1722649892631,-500.0,0.00017808,2]
[333964468,1722649892641,-500.0,0.00017808,2]
[333964469,1722649892651,-500.0,0.00017808,2]
[333964470,1722649892660,-1463.1,0.00017808,2]
[333964471,1722649892669,-3742.31,0.00017808,2]
[333964472,1722649892679,-3566.56,0.00017808,2]
[333964473,1722649892688,-1226.25,0.00017808,2]
[333964474,1722649892699,-1971.89,0.00017808,2]
[333964475,1722649892708,-500.0,0.00017808,2]
[333964476,1722649892718,-3075.02,0.00017808,2]
[333964477,1722649892727,-1185.47,0.00017808,2]
[333964478,1722649892737,-552.85,0.00017808,2]
[333964479,1722649892746,-743.49,0.00017808,2]
[333964480,1722649892755,-888.24,0.00017808,2]
[333964481,1722649892764,-5562.74,0.00017808,2]
[333964482,1722649892774,-1183.17,0.00017808,2]
[333964483,1722649892783,-3096.34,0.00017808,2]
[333964484,1722649892793,-500.0,0.00017808,2]
[333964485,1722649892802,-500.0,0.00017808,2]
[333964486,1722649892811,-1054.9,0.00017808,2]
[333964487,1722649892821,-1045.47,0.00017808,2]
[333964488,1722649892830,-500.0,0.00017808,2]
[333964489,1722649892839,-15589.0,0.00017808,2]
[333964490,1722649892849,-1207.94,0.00017808,2]
[333964491,1722649892858,-651.41,0.00017808,2]
[333964492,1722649892867,-1219.48,0.00017808,2]
[333964493,1722649892876,-500.0,0.00017808,2]
[333964494,1722649892886,-2746.46,0.00017808,2]
[333964495,1722649892895,-500.0,0.00017808,2]
[333964496,1722649892905,-4493.35,0.00017808,2]
[333964497,1722649892915,-1681.17,0.00017808,2]
[333964498,1722649892924,-500.0,0.00017808,2]
[333964499,1722649892933,-1400.25,0.00017808,2]
[333964500,1722649892943,-2308.17,0.00017808,2]
[333964501,1722649892953,-500.0,0.00017808,2]
[333964502,1722649892962,-4608.08,0.00017808,2]
[333964503,1722649892972,-589.24907214,0.00017808,2]
[333964504,1722649892982,-730.54,0.00017808,2]
[333964505,1722649892992,-1068.05,0.00017808,2]
[333964506,1722649893002,-2347.15,0.00017808,2]
[333964507,1722649893011,-500.0,0.00017808,2]
[333964508,1722649893021,-1306.81,0.00017808,2]
[333964509,1722649893031,-577.32,0.00017808,2]
[333964510,1722649893040,-500.0,0.00017808,2]
[333964511,1722649893050,-1235.54,0.00017808,2]
[333964512,1722649893060,-914.78,0.00017808,2]
[333964513,1722649893070,-2077.38,0.00017808,2]
[333964514,1722649893080,-1655.38,0.00017808,2]
[333964515,1722649893090,-7387.69,0.00017808,2]
[333964516,1722649893100,-500.0,0.00017808,2]
[333964517,1722649893111,-500.0,0.00017808,2]
[333964518,1722649893122,-664.56,0.00017808,2]
[333964519,1722649893132,-4811.33,0.00017808,2]
[333964520,1722649893145,-500.0,0.00017808,2]
[333964521,1722649893155,-500.0,0.00017808,2]
[333964522,1722649893165,-1423.38,0.00017808,2]
[333964523,1722649893176,-1614.1,0.00017808,2]
[333964524,1722649893186,-511.65,0.00017808,2]
[333964525,1722649893196,-500.0,0.00017808,2]
[333964526,1722649893207,-9846.06,0.00017808,2]
[333964527,1722649893218,-1264.8,0.00017808,2]
[333964528,1722649893228,-576.23,0.00017808,2]
[333964529,1722649893238,-1329.65,0.00017808,2]
[333964530,1722649893247,-500.0,0.00017808,2]
[333964531,1722649893257,-909.25,0.00017808,2]
[333964532,1722649893267,-500.0,0.00017808,2]
[333964533,1722649893277,-518.27,0.00017808,2]
[333964534,1722649893286,-500.0,0.00017808,2]
[333964535,1722649893294,-500.0,0.00017808,2]
[333964536,1722649893302,-500.0,0.00017808,2]
[333964537,1722649893311,-1757.43,0.00017808,2]
[333964538,1722649893320,-500.0,0.00017808,2]
[333964539,1722649893327,-964.25,0.00017808,2]
[333964540,1722649893334,-551.22,0.00017808,2]
[333964541,1722649893342,-897.36,0.00017808,2]
[333964542,1722649893351,-500.0,0.00017808,2]
[333964543,1722649893358,-500.0,0.00017808,2]
[333964544,1722649893366,-500.0,0.00017808,2]
[333964545,1722649893374,-1771.89,0.00017808,2]
[333964546,1722649893383,-500.0,0.00017808,2]
[333964547,1722649893394,-1233.86,0.00017808,2]
[333964548,1722649893403,-5320.19,0.00017808,2]
[333964549,1722649893412,-698.86,0.00017808,2]
[333964550,1722649893421,-500.0,0.00017808,2]
[333964551,1722649893431,-2120.84,0.00017808,2]
[333964552,1722649893442,-673.59,0.00017808,2]
[333964553,1722649893453,-500.0,0.00017808,2]
[333964554,1722649893464,-521.13,0.00017808,2]
[333964555,1722649893475,-500.0,0.00017808,2]
[333964556,1722649893487,-500.0,0.00017808,2]
[333964557,1722649893498,-1194.08,0.00017808,2]
[333964558,1722649893510,-9728.43,0.00017808,2]
[333964559,1722649893522,-500.0,0.00017808,2]
[333964560,1722649893534,-500.0,0.00017808,2]
[333964561,1722649893546,-1495.7,0.00017808,2]
[333964562,1722649893557,-1589.08,0.00017808,2]
[333964563,1722649893569,-2677.38,0.00017808,2]
[333964564,1722649893580,-942.11,0.00017808,2]
[333964565,1722649893590,-500.0,0.00017808,2]
[333964566,1722649893601,-2478.7,0.00017808,2]
[333964567,1722649893612,-670.56,0.00017808,2]
[333964568,1722649893623,-749.9,0.00017808,2]
[333964569,1722649893720,-1946.32,0.00017808,2]
[333964570,1722649893730,-500.0,0.00017808,2]
[333964571,1722649893740,-500.0,0.00017808,2]
[333964572,1722649893749,-3580.3,0.00017808,2]
[333964573,1722649893759,-500.0,0.00017808,2]
[333964574,1722649893769,-500.0,0.00017808,2]
[333964575,1722649893779,-1055.1,0.00017808,2]
[333964576,1722649893788,-1667.66,0.00017808,2]
[333964577,1722649893798,-500.0,0.00017808,2]
[333964578,1722649893808,-729.57,0.00017808,2]
[333964579,1722649893818,-704.86,0.00017808,2]
[333964580,1722649893827,-500.0,0.00017808,2]
[333964581,1722649893836,-383.28438827,0.00017808,2]
[333964582,1722649893846,-801.24,0.00017808,2]
[333964583,1722649893855,-5780.91,0.00017808,2]
[333964584,1722649893864,-500.0,0.00017808,2]
[333964585,1722649893874,-500.0,0.00017808,2]
[333964586,1722649893884,-500.0,0.00017808,2]
[333964587,1722649893898,-1402.25,0.00017808,2]
[333964588,1722649893908,-1752.51,0.00017808,2]
[333964589,1722649893917,-500.0,0.00017808,2]
[333964590,1722649893927,-2252.56,0.00017808,2]
[333964591,1722649893936,-8312.09,0.00017808,2]
[333964592,1722649893946,-5108.78,0.00017808,2]
[333964593,1722649893956,-632.48,0.00017808,2]
[333964594,1722649893965,-1945.92,0.00017808,2]
[333964595,1722649893974,-1759.83,0.00017808,2]
[333964596,1722649893984,-1257.19,0.00017808,2]
[333964597,1722649893994,-500.0,0.00017808,2]
[333964598,1722649894004,-1754.89,0.00017808,2]
[333964599,1722649894013,-1014.46,0.00017808,2]
[333964600,1722649894023,-2716.17,0.00017808,2]
[333964601,1722649894032,-501.08,0.00017808,2]
[333964602,1722649894041,-690.59,0.00017808,2]
[333964603,1722649894051,-4139.99,0.00017808,2]
[333964604,1722649894060,-3568.54,0.00017808,2]
[333964605,1722649894069,-2890.09,0.00017808,2]
[333964606,1722649894079,-500.0,0.00017808,2]
[333964607,1722649894088,-3159.25,0.00017808,2]
[333964608,1722649894097,-500.0,0.00017808,2]
[333964609,1722649894107,-500.0,0.00017808,2]
[333964610,1722649894116,-500.0,0.00017808,2]
[333964611,1722649894126,-3090.52,0.00017808,2]
[333964612,1722649894136,-1654.87,0.00017808,2]
[333964613,1722649894147,-512.54,0.00017808,2]
[333964614,1722649894156,-1751.95,0.00017808,2]
[333964615,1722649894166,-628.31,0.00017808,2]
[333964616,1722649894176,-531.46,0.00017808,2]
[333964617,1722649894185,-1139.17,0.00017808,2]
[333964618,1722649894195,-624.76,0.00017808,2]
[333964619,1722649894204,-5392.49,0.00017808,2]
[333964620,1722649894214,-500.0,0.00017808,2]
[333964621,1722649894224,-1394.06,0.00017808,2]
[333964622,1722649894234,-557.27,0.00017808,2]
[333964623,1722649894244,-2816.99,0.00017808,2]
[333964624,1722649894253,-3194.59,0.00017808,2]
[333964625,1722649894263,-674.33,0.00017808,2]
[333964626,1722649894273,-1707.62,0.00017808,2]
[333964627,1722649894283,-500.0,0.00017808,2]
[333964628,1722649894293,-500.0,0.00017808,2]
[333964629,1722649894303,-500.0,0.00017808,2]
[333964630,1722649894312,-500.0,0.00017808,2]
[333964631,1722649894322,-500.0,0.00017808,2]
[333964632,1722649894333,-607.51,0.00017808,2]
[333964633,1722649894343,-1698.11,0.00017808,2]
[333964634,1722649894352,-555.27,0.00017808,2]
[333964635,1722649894362,-513.71,0.00017808,2]
[333964636,1722649894371,-2285.28,0.00017808,2]
[333964637,1722649894381,-500.0,0.00017808,2]
[333964638,1722649894396,-151.0,0.00017808,2]
[333964639,1722649894405,-636.34,0.00017808,2]
[333964640,1722649894414,-2927.51,0.00017808,2]
[333964641,1722649894424,-670.27,0.00017808,2]
[333964642,1722649894435,-2357.53,0.00017808,2]
[333964643,1722649894445,-500.0,0.00017808,2]
[333964644,1722649894455,-500.0,0.00017808,2]
[333964645,1722649894466,-3352.6,0.00017808,2]
[333964646,1722649894476,-2944.33,0.00017808,2]
[333964647,1722649894485,-500.0,0.00017808,2]
[333964648,1722649894496,-1872.51,0.00017808,2]
[333964649,1722649894505,-3194.11,0.00017808,2]
[333964650,1722649894515,-500.0,0.00017808,2]
[333964651,1722649894525,-1489.08,0.00017808,2]
[333964652,1722649894535,-500.0,0.00017808,2]
[333964653,1722649894546,-500.0,0.00017808,2]
[333964654,1722649894556,-500.0,0.00017808,2]
[333964655,1722649894566,-500.67,0.00017808,2]
[333964656,1722649894576,-1683.64,0.00017808,2]
[333964657,1722649894587,-500.0,0.00017808,2]
[333964658,1722649894597,-277.940645,0.00017808,2]
[333964659,1722649894607,-500.0,0.00017808,2]
[333964660,1722649894617,-4714.78,0.00017808,2]
[333964661,1722649894627,-2707.61,0.00017808,2]
[333964662,1722649894640,-1483.81,0.00017808,2]
[333964663,1722649894650,-500.0,0.00017808,2]
[333964664,1722649894660,-2696.98,0.00017808,2]
[333964665,1722649894669,-500.0,0.00017808,2]
[333964666,1722649894679,-500.0,0.00017808,2]
[333964667,1722649894688,-1795.85,0.00017808,2]
[333964668,1722649894698,-1711.65,0.00017808,2]
[333964669,1722649894707,-500.0,0.00017808,2]
[333964670,1722649894717,-151.0,0.00017808,2]
[333964671,1722649894726,-500.0,0.00017808,2]
[333964672,1722649894735,-5096.55,0.00017808,2]
[333964673,1722649894745,-151.0,0.00017808,2]
[333964674,1722649894755,-500.0,0.00017808,2]
[333964675,1722649894765,-1063.77,0.00017808,2]
[333964676,1722649894775,-1669.51,0.00017808,2]
[333964677,1722649894784,-500.0,0.00017808,2]
[333964678,1722649894794,-500.0,0.00017808,2]
[333964679,1722649894803,-4399.85,0.00017808,2]
[333964680,1722649894812,-500.0,0.00017808,2]
[333964681,1722649894822,-587.43,0.00017808,2]
[333964682,1722649894831,-500.0,0.00017808,2]
[333964683,1722649894840,-1091.44,0.00017808,2]
[333964684,1722649894850,-500.0,0.00017808,2]
[333964685,1722649894859,-5398.34,0.00017808,2]
[333964686,1722649894869,-500.0,0.00017808,2]
[333964687,1722649894878,-2070.96,0.00017808,2]
[333964688,1722649894889,-796.18,0.00017808,2]
[333964689,1722649894898,-500.0,0.00017808,2]
[333964690,1722649894907,-3773.69,0.00017808,2]
[333964691,1722649894917,-1711.3,0.00017808,2]
[333964692,1722649894926,-624.97,0.00017808,2]
[333964693,1722649894936,-1561.23,0.00017808,2]
[333964694,1722649894945,-1544.34,0.00017808,2]
[333964695,1722649894955,-500.0,0.00017808,2]
[333964696,1722649894965,-3340.67,0.00017808,2]
[333964697,1722649894974,-502.81,0.00017808,2]
[333964698,1722649894983,-500.0,0.00017808,2]
[333964699,1722649894993,-1886.92,0.00017808,2]
[333964700,1722649895003,-1131.33,0.00017808,2]
[333964701,1722649895012,-3876.52,0.00017808,2]
[333964702,1722649895021,-500.0,0.00017808,2]
[333964703,1722649895031,-500.0,0.00017808,2]
[333964704,1722649895040,-1118.15,0.00017808,2]
[333964705,1722649895050,-1761.5,0.00017808,2]
[333964706,1722649895060,-531.68,0.00017808,2]
[333964707,1722649895070,-11118.7,0.00017808,2]
[333964708,1722649895080,-3921.71,0.00017808,2]
[333964709,1722649895089,-2241.61,0.00017808,2]
[333964710,1722649895099,-614.89,0.00017808,2]
[333964711,1722649895109,-500.0,0.00017808,2]
[333964712,1722649895119,-5408.66,0.00017808,2]
[333964713,1722649895129,-524.7,0.00017808,2]
[333964714,1722649895139,-540.43,0.00017808,2]
[333964715,1722649895149,-500.0,0.00017808,2]
[333964716,1722649895159,-1635.52,0.00017808,2]
[333964717,1722649895169,-500.0,0.00017808,2]
[333964718,1722649895179,-2659.06,0.00017808,2]
[333964719,1722649895189,-521.67,0.00017808,2]
[333964720,1722649895199,-1064.95,0.00017808,2]
[333964721,1722649895209,-1041.83,0.00017808,2]
[333964722,1722649895219,-1865.74,0.00017808,2]
[333964723,1722649895229,-882.92,0.00017808,2]
[333964724,1722649895238,-572.89,0.00017808,2]
[333964725,1722649895247,-500.0,0.00017808,2]
[333964726,1722649895257,-2242.16591424,0.00017808,2]
[333964727,1722649895889,-573.51408576,0.00017808,2]
[333964728,1722649895900,-163.0,0.00017812,30]
[333964729,1722649895910,-163.0,0.00017822,30]
[333964730,1722649895919,-422.02227749,0.00017845,2]
[333964731,1722649895929,-200.0,0.00017873,2]
[333964732,1722649895938,-151.453917,0.00017876,2]
[333964733,1722649895948,-2829.640279,0.00017876,2]
[333964734,1722649895957,-16047.7175121,0.00017876,2]
[333964735,1722649895969,-12409.8536001,0.00017876,2]
[333964736,1722649895979,-2213.1518843,0.00017876,2]
[333964737,1722649895988,-1667.6463285,0.00017879,2]
[333964738,1722649896920,-161.014,0.00014494,2]
[333964739,1722649896930,-186.578,0.00014494,2]
[333964740,1722649896940,-500.0,0.00016438,2]
[333964741,1722649896950,-500.0,0.00016438,2]
[333964742,1722649896960,-500.0,0.00016712,2]
[333964743,1722649896969,-500.0,0.00016712,2]
[333964744,1722649896979,-500.0,0.00016986,2]
[333964745,1722649896989,-500.0,0.00016986,2]
[333964746,1722649896999,-500.0,0.0001726,2]
[333964747,1722649897008,-500.0,0.0001726,2]
[333964748,1722649897018,-150.0,0.00017494,2]
[333964749,1722649897027,-150.0,0.00017494,2]
[333964750,1722649897037,-291.47,0.00017534,2]
[333964751,1722649897047,-475.51686504,0.000176,2]
[333964752,1722649897057,-3706.75650479,0.00017879,2]
[333964753,1722649897068,-13205.26463017,0.0001788,2]
[333964754,1722649897080,-29547.92931402,0.0001788,2]
[333964755,1722649897091,-1504.17560803,0.0001788,2]
[333964756,1722649897103,-37113.91681464,0.0001788,2]
[333964757,1722649897115,-500.0,0.0001788,2]
[333964783,1722650863081,-444.647356,0.0001027,2]
[333964784,1722650863104,-1670.352644,0.00010322,2]
[333964787,1722651031940,-298.62086198,0.00010321,2]
[333964789,1722651031951,-520.37913802,0.00010321,2]
[333964791,1722651031963,-300.0,0.00010321,2]
[333964793,1722651031973,-4710.13809316,0.00010322,2]
[333964795,1722651031984,-911.46,0.00010322,2]
[333964798,1722651031996,-5348.15518411,0.00010322,2]
[333964800,1722651032005,-511.91390026,0.00010322,2]
[333964802,1722651032015,-615.66095563,0.00010322,2]
[333964804,1722651032027,-316.49048467,0.00010322,2]
[333964807,1722651032038,-3133.67588142,0.00010322,2]
[333964809,1722651032047,-413.63001504,0.00010322,2]
[333964811,1722651032056,-293.20460724,0.00010322,2]
[333964813,1722651032065,-966.7056695,0.00010322,2]
[333964814,1722651032075,-150.0,0.00010422,2]
[333964815,1722651032084,-8395.20885072,0.00010423,2]
[333964816,1722651032094,-384.81436237,0.00010423,2]
[333964817,1722651032104,-155.0,0.00010423,2]
[333964818,1722651032114,-307.73903796,0.00010423,2]
[333964819,1722651032123,-961.39317205,0.0001067,2]
[333964820,1722651032133,-283.81,0.00011,2]
[333964821,1722651032142,-250.79757724,0.00011,2]
[333964822,1722651032151,-420.0,0.00011349,2]
[333964823,1722651032161,-197.0,0.00011443,2]
[333964824,1722651032171,-836.02,0.00011913,2]
[333964825,1722651032180,-150.99,0.00011913,2]
[333964826,1722651032190,-550.0,0.00012,2]
[333964827,1722651032199,-499.99,0.00012,2]
[333964828,1722651032211,-150.99,0.00012,2]
[333964829,1722651032221,-1096.99,0.00012225,2]
[333964830,1722651032230,-5483.68794989,0.0001236,2]
[333964831,1722651032239,-587.0,0.0001248,2]
[333964832,1722651032249,-300.0,0.0001296,2]
[333964833,1722651032258,-282.37,0.0001296,2]
[333964834,1722651032268,-237.0,0.000132,5]
[333964835,1722651032277,-300.0,0.0001329,2]
[333964836,1722651032286,-278.05406627,0.000134,2]
[333964837,1722651032296,-300.0,0.0001361,2]
[333964838,1722651032305,-250.0,0.00013655,2]
[333964839,1722651032314,-200.0,0.00013664,2]
[333964840,1722651032323,-427.4,0.00013699,2]
[333964841,1722651032333,-345.0,0.0001371,2]
[333964842,1722651032343,-155.5,0.00013711,2]
[333964843,1722651032352,-600.0,0.00013724,2]
[333964844,1722651032361,-823.0,0.00013724,2]
[333964845,1722651032371,-150.0,0.00013782,2]
[333964846,1722651032380,-3326.13,0.00013784,2]
[333964847,1722651032390,-167.01,0.00013788,30]
[333964848,1722651032399,-3239.73,0.00013853,2]
[333964849,1722651032408,-1845.35,0.00013865,2]
[333964850,1722651032418,-250.0,0.00013917,2]
[333964851,1722651032427,-300.0,0.0001394,2]
[333964852,1722651032437,-1345.653,0.0001394,2]
[333964853,1722651032446,-426.53,0.00013973,2]
[333964854,1722651032456,-204.98,0.00013984,2]
[333964855,1722651032467,-600.0,0.00014,2]
[333964856,1722651032476,-400.0,0.00014068,2]
[333964857,1722651032486,-836.02,0.00014177,2]
[333964858,1722651032495,-300.0,0.0001427,2]
[333964859,1722651032505,-266.6,0.00014318,2]
[333964860,1722651032515,-1291.619,0.00014433,2]
[333964861,1722651032525,-5127.0,0.00014433,2]
[333964862,1722651032535,-1203.0,0.00014433,2]
[333964863,1722651032545,-1670.0,0.00014433,2]
[333964864,1722651032555,-260.527,0.00014494,2]
[333964865,1722651032563,-250.0,0.00014494,2]
[333964866,1722651032573,-169.765,0.00014494,2]
[333964867,1722651032582,-297.72774666,0.00014519,2]
[333964868,1722651032591,-300.0,0.000146,2]
[333964869,1722651032600,-264.5,0.000146,2]
[333964870,1722651032609,-1255.0,0.00014611,2]
[333964871,1722651032619,-1582.0,0.00014611,2]
[333964872,1722651032628,-1925.0,0.00014611,2]
[333964873,1722651032637,-621.0,0.00014611,2]
[333964874,1722651032647,-447.294,0.00014611,2]
[333964875,1722651032656,-843.42,0.00014611,2]
[333964876,1722651032666,-150.275,0.00014611,2]
[333964877,1722651032675,-451.0,0.00014611,2]
[333964878,1722651032684,-150.2,0.00014611,2]
[333964879,1722651032693,-1893.0,0.00014611,2]
[333964880,1722651032703,-550.0,0.00014611,2]
[333964881,1722651032714,-150.244,0.00014611,2]
[333964882,1722651032724,-3287.0,0.00014611,2]
[333964883,1722651032733,-1370.0,0.00014611,2]
[333964884,1722651032742,-300.0,0.0001492,2]
[333964885,1722651032752,-1152.0,0.00015091,2]
[333964886,1722651032766,-300.0,0.0001525,2]
[333964887,1722651032775,-600.0,0.00015439,2]
[333964888,1722651032784,-300.0,0.0001558,2]
[333964889,1722651032794,-710.0,0.000156,2]
[333964890,1722651032804,-500.0,0.00015616,2]
[333964891,1722651032814,-400.0,0.00015827,2]